[Event "*** SCC Grand Prix: Titled Tuesday Blitz"]
[Site "Chess.com"]
[Date "2020.06.23"]
[Round "7"]
[White "JozefKneht"]
[Black "tan275"]
[Result "0-1"]
[WhiteElo "2434"]
[BlackElo "2281"]
[TimeControl "180+1"]
[EndTime "11:18:28 PDT"]
[Termination "tan275 won on time"]

1. e4 {[%clk 0:03:00.9]} 1... c6 {[%clk 0:02:58.5]} 2. d4 {[%clk 0:02:59.9]}
2... d5 {[%clk 0:02:58.9]} 3. Nc3 {[%clk 0:03:00.7]} 3... dxe4 {[%clk
0:02:58.5]} 4. Nxe4 {[%clk 0:03:01.6]} 4... Bf5 {[%clk 0:02:58.8]} 5. Ng3 {[%clk
0:03:01.6]} 5... Bg6 {[%clk 0:02:59.3]} 6. h4 {[%clk 0:03:02.5]} 6... h6 {[%clk
0:02:59.3]} 7. Nf3 {[%clk 0:03:03.4]} 7... e6 {[%clk 0:02:59.4]} 8. Ne5 {[%clk
0:03:03]} 8... Bh7 {[%clk 0:02:59.4]} 9. Bd3 {[%clk 0:03:03.7]} 9... Bxd3 {[%clk
0:02:59.3]} 10. Qxd3 {[%clk 0:03:04.3]} 10... Nd7 {[%clk 0:02:56.9]} 11. f4
{[%clk 0:03:04]} 11... Be7 {[%clk 0:02:55.5]} 12. Nh5 {[%clk 0:03:01.7]} 12...
Ngf6 {[%clk 0:02:42]} 13. Nxf6+ {[%clk 0:02:13.1]} 13... Bxf6 {[%clk 0:02:39.9]}
14. g3 {[%clk 0:02:04.3]} 14... c5 {[%clk 0:02:25.5]} 15. Nxd7 {[%clk
0:02:02.7]} 15... Qxd7 {[%clk 0:02:24]} 16. dxc5 {[%clk 0:02:02.9]} 16... Qc6
{[%clk 0:02:19.5]} 17. Rf1 {[%clk 0:01:55.1]} 17... Rd8 {[%clk 0:02:16]} 18. Qe2
{[%clk 0:01:40.4]} 18... O-O {[%clk 0:02:13.2]} 19. c3 {[%clk 0:01:33.9]} 19...
Rfe8 {[%clk 0:01:36.1]} 20. Be3 {[%clk 0:01:31.7]} 20... e5 {[%clk 0:01:31.6]}
21. f5 {[%clk 0:01:31.2]} 21... e4 {[%clk 0:01:29.7]} 22. Rd1 {[%clk 0:01:28.9]}
22... Qa4 {[%clk 0:01:20.1]} 23. a3 {[%clk 0:01:24.8]} 23... Qb3 {[%clk
0:01:16.1]} 24. Kf2 {[%clk 0:01:23.6]} 24... Rd3 {[%clk 0:00:59.3]} 25. Kg2
{[%clk 0:01:13.7]} 25... Red8 {[%clk 0:00:58.1]} 26. Rde1 {[%clk 0:01:13.9]}
26... Be5 {[%clk 0:00:47.3]} 27. Rf2 {[%clk 0:00:51.8]} 27... f6 {[%clk
0:00:38.6]} 28. Qh5 {[%clk 0:00:43.5]} 28... Qd5 {[%clk 0:00:31]} 29. Qg6 {[%clk
0:00:36.9]} 29... Kf8 {[%clk 0:00:22.3]} 30. Rfe2 {[%clk 0:00:34.9]} 30... Rd1
{[%clk 0:00:17.2]} 31. Qg4 {[%clk 0:00:26.7]} 31... Rxe1 {[%clk 0:00:15.7]} 32.
Rxe1 {[%clk 0:00:26.4]} 32... Qb3 {[%clk 0:00:13.3]} 33. Re2 {[%clk 0:00:23.7]}
33... Qd1 {[%clk 0:00:11.2]} 34. Bf2 {[%clk 0:00:24]} 34... e3 {[%clk
0:00:03.4]} 35. Bxe3 {[%clk 0:00:23.6]} 35... Rd3 {[%clk 0:00:02.8]} 36. Bf2
{[%clk 0:00:17.9]} 36... Rd2 {[%clk 0:00:02.6]} 37. Rxd2 {[%clk 0:00:09.7]}
37... Qxg4 {[%clk 0:00:01.7]} 38. c6 {[%clk 0:00:10.6]} 38... Kf7 {[%clk
0:00:02]} 39. cxb7 {[%clk 0:00:09.6]} 39... Qe4+ {[%clk 0:00:02.4]} 40. Kg1
{[%clk 0:00:10]} 40... Qxb7 {[%clk 0:00:03.3]} 41. Re2 {[%clk 0:00:07.3]} 41...
Qb3 {[%clk 0:00:03.8]} 42. Kg2 {[%clk 0:00:06.6]} 42... Qd1 {[%clk 0:00:04.1]}
43. Kf3 {[%clk 0:00:05.6]} 43... Qd5+ {[%clk 0:00:04.4]} 44. Re4 {[%clk
0:00:05.8]} 44... Qb3 {[%clk 0:00:05.3]} 45. Re2 {[%clk 0:00:05.4]} 45... Qd5+
{[%clk 0:00:04.9]} 46. Re4 {[%clk 0:00:05.5]} 46... Qb3 {[%clk 0:00:05.8]} 47.
Re2 {[%clk 0:00:05.3]} 47... Ke7 {[%clk 0:00:06.4]} 48. Bd4 {[%clk 0:00:04]}
48... Kd6 {[%clk 0:00:06.7]} 49. Bxe5+ {[%clk 0:00:03.7]} 49... fxe5 {[%clk
0:00:07.6]} 50. g4 {[%clk 0:00:03.6]} 50... Kd5 {[%clk 0:00:07.2]} 51. g5 {[%clk
0:00:03.5]} 51... hxg5 {[%clk 0:00:06.5]} 52. hxg5 {[%clk 0:00:03.7]} 52... Qd1
{[%clk 0:00:07.1]} 53. f6 {[%clk 0:00:03.1]} 53... Qd3+ {[%clk 0:00:07]} 0-1

[Event "*** SCC Grand Prix: Titled Tuesday Blitz"]
[Site "Chess.com"]
[Date "2020.06.23"]
[Round "7"]
[White "vanyakuba"]
[Black "Falia-p"]
[Result "1-0"]
[WhiteElo "2430"]
[BlackElo "2238"]
[TimeControl "180+1"]
[EndTime "11:18:31 PDT"]
[Termination "vanyakuba won by resignation"]

1. d4 {[%clk 0:03:00.9]} 1... Nf6 {[%clk 0:02:59.6]} 2. Nf3 {[%clk 0:03:00]}
2... d5 {[%clk 0:02:58.9]} 3. c4 {[%clk 0:02:59.3]} 3... e6 {[%clk 0:02:59]} 4.
g3 {[%clk 0:02:59.9]} 4... dxc4 {[%clk 0:02:58.4]} 5. Bg2 {[%clk 0:03:00.8]}
5... a6 {[%clk 0:02:57.3]} 6. O-O {[%clk 0:03:01.7]} 6... Nc6 {[%clk 0:02:57.5]}
7. e3 {[%clk 0:02:52.8]} 7... Rb8 {[%clk 0:02:57.1]} 8. Nfd2 {[%clk 0:02:44.6]}
8... e5 {[%clk 0:02:51.5]} 9. Bxc6+ {[%clk 0:02:43.3]} 9... bxc6 {[%clk
0:02:51.3]} 10. dxe5 {[%clk 0:02:43.7]} 10... Ng4 {[%clk 0:02:50.5]} 11. Nxc4
{[%clk 0:02:42.2]} 11... Be6 {[%clk 0:02:37.5]} 12. Qe2 {[%clk 0:02:15.3]} 12...
h5 {[%clk 0:02:31.6]} 13. Rd1 {[%clk 0:02:06.3]} 13... Qc8 {[%clk 0:02:28.2]}
14. h3 {[%clk 0:01:27.6]} 14... Bxc4 {[%clk 0:01:54.3]} 15. Qxc4 {[%clk
0:01:28.5]} 15... Nxe5 {[%clk 0:01:53.9]} 16. Qe4 {[%clk 0:01:28.4]} 16... Qe6
{[%clk 0:01:49.4]} 17. Nc3 {[%clk 0:01:09.4]} 17... Bd6 {[%clk 0:01:46.7]} 18.
f4 {[%clk 0:01:09]} 18... Nc4 {[%clk 0:01:21.6]} 19. Qxe6+ {[%clk 0:00:59.2]}
19... fxe6 {[%clk 0:01:21]} 20. b3 {[%clk 0:00:59.5]} 20... Bb4 {[%clk
0:01:01.7]} 21. Ne4 {[%clk 0:00:52]} 21... Nd6 {[%clk 0:00:57.9]} 22. Ng5 {[%clk
0:00:48.5]} 22... Ke7 {[%clk 0:00:54.6]} 23. Bb2 {[%clk 0:00:47.4]} 23... Bc5
{[%clk 0:00:49.4]} 24. Bxg7 {[%clk 0:00:31.9]} 24... Bxe3+ {[%clk 0:00:47.2]}
25. Kg2 {[%clk 0:00:25.5]} 25... Rhg8 {[%clk 0:00:47.1]} 26. Be5 {[%clk
0:00:25.1]} 26... Nf5 {[%clk 0:00:29.5]} 27. Kf3 {[%clk 0:00:25.1]} 27... Bb6
{[%clk 0:00:26.8]} 28. h4 {[%clk 0:00:23]} 28... Rgd8 {[%clk 0:00:24.6]} 29.
Rac1 {[%clk 0:00:22]} 29... Rxd1 {[%clk 0:00:21.2]} 30. Rxd1 {[%clk 0:00:22.9]}
30... Rd8 {[%clk 0:00:18.1]} 31. Bf6+ {[%clk 0:00:21.9]} 31... Kxf6 {[%clk
0:00:16.2]} 32. Rxd8 {[%clk 0:00:21.7]} 32... Nd4+ {[%clk 0:00:17.1]} 33. Ke4
{[%clk 0:00:19.6]} 33... Ne2 {[%clk 0:00:15.2]} 34. Rf8+ {[%clk 0:00:18.7]}
34... Ke7 {[%clk 0:00:14.8]} 35. Rf7+ {[%clk 0:00:19.1]} 35... Kd6 {[%clk
0:00:14.9]} 36. Kf3 {[%clk 0:00:19.2]} 36... Nd4+ {[%clk 0:00:14.1]} 37. Kg2
{[%clk 0:00:18.8]} 37... Nf5 {[%clk 0:00:11.9]} 38. Rh7 {[%clk 0:00:18]} 38...
Ne3+ {[%clk 0:00:11.9]} 39. Kf3 {[%clk 0:00:17.1]} 39... Nf1 {[%clk 0:00:10.5]}
40. Rxh5 {[%clk 0:00:14.8]} 40... Nd2+ {[%clk 0:00:11.4]} 41. Kg2 {[%clk
0:00:14.6]} 41... Nb1 {[%clk 0:00:10]} 42. Rh6 {[%clk 0:00:14]} 42... Nc3 {[%clk
0:00:09.7]} 43. Rxe6+ {[%clk 0:00:14.3]} 43... Kd5 {[%clk 0:00:10.6]} 44. h5
{[%clk 0:00:14.6]} 44... Nxa2 {[%clk 0:00:10.4]} 45. h6 {[%clk 0:00:14.7]} 45...
Bd4 {[%clk 0:00:10.5]} 46. h7 {[%clk 0:00:12.8]} 46... Nc1 {[%clk 0:00:10.6]}
47. Re8 {[%clk 0:00:07.6]} 47... Bb2 {[%clk 0:00:07.9]} 48. Rd8+ {[%clk
0:00:07.1]} 48... Kc5 {[%clk 0:00:07.6]} 49. Ne6+ {[%clk 0:00:07]} 49... Kb4
{[%clk 0:00:06.7]} 50. Nd4 {[%clk 0:00:07.2]} 50... Bxd4 {[%clk 0:00:06.1]} 51.
Rxd4+ {[%clk 0:00:07.1]} 51... Kxb3 {[%clk 0:00:07]} 52. h8=Q {[%clk 0:00:07]}
52... Kc3 {[%clk 0:00:07.9]} 53. Rd1+ {[%clk 0:00:06.5]} 53... Kc2 {[%clk
0:00:08.8]} 54. Rxc1+ {[%clk 0:00:06.9]} 54... Kxc1 {[%clk 0:00:09.1]} 55. Kf2
{[%clk 0:00:07.8]} 55... Kd2 {[%clk 0:00:08.7]} 56. Qd4+ {[%clk 0:00:06.9]} 1-0

[Event "*** SCC Grand Prix: Titled Tuesday Blitz"]
[Site "Chess.com"]
[Date "2020.06.23"]
[Round "7"]
[White "petrkostenko"]
[Black "Ginger_GM"]
[Result "1-0"]
[WhiteElo "2537"]
[BlackElo "2657"]
[TimeControl "180+1"]
[EndTime "11:18:34 PDT"]
[Termination "petrkostenko won by resignation"]

1. e4 {[%clk 0:02:54.3]} 1... d6 {[%clk 0:02:53.8]} 2. Nc3 {[%clk 0:02:48.9]}
2... Nf6 {[%clk 0:02:48.7]} 3. f4 {[%clk 0:02:45.6]} 3... d5 {[%clk 0:02:48.5]}
4. e5 {[%clk 0:02:43.7]} 4... Ng4 {[%clk 0:02:45.3]} 5. d4 {[%clk 0:02:40.4]}
5... c5 {[%clk 0:02:40.8]} 6. dxc5 {[%clk 0:02:31.7]} 6... d4 {[%clk 0:02:33.4]}
7. Nb5 {[%clk 0:02:31.3]} 7... Nc6 {[%clk 0:02:27.3]} 8. Nf3 {[%clk 0:02:30.9]}
8... a6 {[%clk 0:01:21.3]} 9. Nbxd4 {[%clk 0:02:28.1]} 9... Qa5+ {[%clk
0:01:21]} 10. c3 {[%clk 0:02:27.2]} 10... Qxc5 {[%clk 0:01:20.9]} 11. Be2 {[%clk
0:02:23.3]} 11... Bf5 {[%clk 0:01:03.5]} 12. h3 {[%clk 0:01:42.7]} 12... Nh6
{[%clk 0:00:56.4]} 13. Be3 {[%clk 0:01:42.5]} 13... Qa5 {[%clk 0:00:52.2]} 14.
g4 {[%clk 0:01:40.5]} 14... Be4 {[%clk 0:00:51]} 15. O-O {[%clk 0:01:39.7]}
15... O-O-O {[%clk 0:00:48.5]} 16. Qb3 {[%clk 0:01:11.3]} 16... e6 {[%clk
0:00:38.3]} 17. Nxc6 {[%clk 0:00:59]} 17... Bxc6 {[%clk 0:00:39.2]} 18. Nd4
{[%clk 0:00:51.9]} 18... Bc5 {[%clk 0:00:33]} 19. Qc2 {[%clk 0:00:51.3]} 19...
Bd5 {[%clk 0:00:27.9]} 20. b4 {[%clk 0:00:45.5]} 20... Bxd4 {[%clk 0:00:27.8]}
21. Bxd4 {[%clk 0:00:41.5]} 21... Qc7 {[%clk 0:00:27.4]} 22. Rac1 {[%clk
0:00:32.3]} 22... Ng8 {[%clk 0:00:24.1]} 23. c4 {[%clk 0:00:29.5]} 23... Bc6
{[%clk 0:00:24]} 24. Be3 {[%clk 0:00:29.9]} 24... h5 {[%clk 0:00:18.1]} 25. g5
{[%clk 0:00:28.6]} 25... Ne7 {[%clk 0:00:17.5]} 26. a4 {[%clk 0:00:27.4]} 26...
Nf5 {[%clk 0:00:16.9]} 27. Bf2 {[%clk 0:00:25.2]} 27... Nd4 {[%clk 0:00:17.1]}
28. Bxd4 {[%clk 0:00:25]} 28... Rxd4 {[%clk 0:00:18]} 29. b5 {[%clk 0:00:25.5]}
29... Qb6 {[%clk 0:00:17.8]} 30. c5 {[%clk 0:00:25]} 30... Qa5 {[%clk
0:00:17.4]} 31. bxc6 {[%clk 0:00:24.5]} 31... bxc6 {[%clk 0:00:17.8]} 32. Bf3
{[%clk 0:00:24.6]} 32... Rd2 {[%clk 0:00:17.2]} 33. Qe4 {[%clk 0:00:24.2]} 33...
Kd8 {[%clk 0:00:14]} 34. Qxc6 {[%clk 0:00:22.9]} 34... Ke7 {[%clk 0:00:14.1]}
35. Qb7+ {[%clk 0:00:21.8]} 35... Rd7 {[%clk 0:00:12.6]} 36. Qb6 {[%clk
0:00:20.8]} 36... Qd2 {[%clk 0:00:12.5]} 37. Bg2 {[%clk 0:00:19.5]} 37... Qe3+
{[%clk 0:00:12.3]} 38. Kh1 {[%clk 0:00:19.6]} 38... Rhd8 {[%clk 0:00:13.1]} 39.
Rce1 {[%clk 0:00:17.2]} 39... Qg3 {[%clk 0:00:12.9]} 40. f5 {[%clk 0:00:16.9]}
40... Rd2 {[%clk 0:00:12.9]} 41. Qb7+ {[%clk 0:00:16.7]} 41... Kf8 {[%clk
0:00:12.7]} 42. Qf3 {[%clk 0:00:16]} 42... Qxf3 {[%clk 0:00:07]} 43. Rxf3 {[%clk
0:00:16]} 43... exf5 {[%clk 0:00:07.5]} 44. Rxf5 {[%clk 0:00:16.1]} 44... Ke7
{[%clk 0:00:08.1]} 45. e6 {[%clk 0:00:14.7]} 45... fxe6 {[%clk 0:00:08.1]} 46.
Rfe5 {[%clk 0:00:15.3]} 46... Kd7 {[%clk 0:00:08.4]} 47. Rxe6 {[%clk 0:00:15]}
47... Kc8 {[%clk 0:00:09.3]} 48. Rc6+ {[%clk 0:00:14.7]} 48... Kb8 {[%clk
0:00:09.7]} 49. Rb6+ {[%clk 0:00:14.5]} 49... Kc7 {[%clk 0:00:09.6]} 50. Rc6+
{[%clk 0:00:14.7]} 50... Kd7 {[%clk 0:00:09.9]} 51. Rxa6 {[%clk 0:00:13.7]}
51... Rf8 {[%clk 0:00:08.8]} 52. Ra7+ {[%clk 0:00:13.8]} 52... Kc8 {[%clk
0:00:05.9]} 53. Ra8+ {[%clk 0:00:14]} 1-0

[Event "*** SCC Grand Prix: Titled Tuesday Blitz"]
[Site "Chess.com"]
[Date "2020.06.23"]
[Round "7"]
[White "Man-Chuk"]
[Black "ENajer77"]
[Result "1/2-1/2"]
[WhiteElo "2848"]
[BlackElo "2696"]
[TimeControl "180+1"]
[EndTime "11:18:37 PDT"]
[Termination "Game drawn by repetition"]

1. c4 {[%clk 0:03:00.9]} 1... e5 {[%clk 0:02:48.3]} 2. Nc3 {[%clk 0:03:01]} 2...
Nc6 {[%clk 0:02:43.9]} 3. Nf3 {[%clk 0:02:58.2]} 3... Nf6 {[%clk 0:02:43.1]} 4.
e3 {[%clk 0:02:57.8]} 4... Bb4 {[%clk 0:02:39.5]} 5. Nd5 {[%clk 0:02:58.2]} 5...
Bd6 {[%clk 0:02:22.1]} 6. d3 {[%clk 0:02:48.5]} 6... Nxd5 {[%clk 0:02:19.5]} 7.
cxd5 {[%clk 0:02:49.2]} 7... Ne7 {[%clk 0:02:17.7]} 8. e4 {[%clk 0:02:47.5]}
8... c6 {[%clk 0:02:16.4]} 9. dxc6 {[%clk 0:02:43.7]} 9... Nxc6 {[%clk
0:02:13.1]} 10. Be2 {[%clk 0:02:37.2]} 10... Bb4+ {[%clk 0:02:11.5]} 11. Bd2
{[%clk 0:02:34.5]} 11... Bxd2+ {[%clk 0:02:11]} 12. Qxd2 {[%clk 0:02:35.4]}
12... O-O {[%clk 0:02:10.6]} 13. d4 {[%clk 0:02:20.8]} 13... exd4 {[%clk
0:02:09.8]} 14. Nxd4 {[%clk 0:02:20.6]} 14... Re8 {[%clk 0:01:56]} 15. O-O
{[%clk 0:01:35.6]} 15... Rxe4 {[%clk 0:01:55]} 16. Nb5 {[%clk 0:01:35.5]} 16...
d5 {[%clk 0:01:51.6]} 17. Bf3 {[%clk 0:01:29.2]} 17... Re5 {[%clk 0:01:49.3]}
18. Rad1 {[%clk 0:01:16.4]} 18... Be6 {[%clk 0:01:25.1]} 19. Nd4 {[%clk
0:01:02.8]} 19... Qf6 {[%clk 0:01:19.6]} 20. b4 {[%clk 0:00:26.8]} 20... Rc8
{[%clk 0:00:56.6]} 21. Nb3 {[%clk 0:00:24.2]} 21... b6 {[%clk 0:00:52.1]} 22.
Rc1 {[%clk 0:00:23.1]} 22... h6 {[%clk 0:00:47.9]} 23. Rfd1 {[%clk 0:00:22.7]}
23... Rg5 {[%clk 0:00:44.3]} 24. Kh1 {[%clk 0:00:16.1]} 24... Rf5 {[%clk
0:00:38.3]} 25. Nd4 {[%clk 0:00:06.3]} 25... Nxd4 {[%clk 0:00:31.7]} 26. Rxc8+
{[%clk 0:00:07.2]} 26... Bxc8 {[%clk 0:00:31]} 27. Qxd4 {[%clk 0:00:08.1]} 27...
Rxf3 {[%clk 0:00:24.6]} 28. gxf3 {[%clk 0:00:05.8]} 28... Qxf3+ {[%clk
0:00:23.8]} 29. Kg1 {[%clk 0:00:06.2]} 29... Bh3 {[%clk 0:00:21.7]} 30. Qxd5
{[%clk 0:00:06.9]} 30... Qg4+ {[%clk 0:00:21.4]} 31. Kh1 {[%clk 0:00:07.6]}
31... Bg2+ {[%clk 0:00:21.4]} 32. Qxg2 {[%clk 0:00:08.2]} 32... Qxd1+ {[%clk
0:00:20.6]} 33. Qg1 {[%clk 0:00:09.1]} 33... Qxg1+ {[%clk 0:00:19.7]} 34. Kxg1
{[%clk 0:00:10]} 34... g5 {[%clk 0:00:17.8]} 35. Kg2 {[%clk 0:00:10.9]} 35... f5
{[%clk 0:00:16]} 36. f4 {[%clk 0:00:10.9]} 36... g4 {[%clk 0:00:15.1]} 37. Kg3
{[%clk 0:00:07.8]} 37... Kg7 {[%clk 0:00:14.9]} 38. b5 {[%clk 0:00:07.8]} 38...
Kf6 {[%clk 0:00:12.8]} 39. Kh4 {[%clk 0:00:08.1]} 39... Kg6 {[%clk 0:00:12.6]}
40. a3 {[%clk 0:00:06.7]} 40... Kg7 {[%clk 0:00:10.8]} 41. Kh5 {[%clk
0:00:05.9]} 41... Kh7 {[%clk 0:00:10.3]} 42. Kh4 {[%clk 0:00:06.3]} 42... Kg6
{[%clk 0:00:09.9]} 43. Kg3 {[%clk 0:00:06.6]} 43... Kh5 {[%clk 0:00:10.3]} 44.
Kf2 {[%clk 0:00:05.5]} 44... Kh4 {[%clk 0:00:09.6]} 45. Kg2 {[%clk 0:00:05.9]}
45... Kh5 {[%clk 0:00:08.7]} 46. Kg3 {[%clk 0:00:06.1]} 46... Kg6 {[%clk
0:00:08.5]} 47. Kh4 {[%clk 0:00:07]} 47... Kg7 {[%clk 0:00:08.1]} 48. Kh5 {[%clk
0:00:07.1]} 48... Kh7 {[%clk 0:00:08.3]} 49. Kh4 {[%clk 0:00:07.6]} 49... Kg6
{[%clk 0:00:07.2]} 50. Kg3 {[%clk 0:00:07.9]} 50... Kf7 {[%clk 0:00:05.1]} 51.
Kh4 {[%clk 0:00:08.1]} 51... Kf6 {[%clk 0:00:04.1]} 52. Kh5 {[%clk 0:00:08.2]}
52... Kg7 {[%clk 0:00:03.9]} 53. Kh4 {[%clk 0:00:08.6]} 53... Kf6 {[%clk
0:00:03.6]} 54. Kh5 {[%clk 0:00:08.9]} 54... Kg7 {[%clk 0:00:03.4]} 55. Kh4
{[%clk 0:00:09.3]} 55... Kg6 {[%clk 0:00:04.3]} 1/2-1/2

[Event "*** SCC Grand Prix: Titled Tuesday Blitz"]
[Site "Chess.com"]
[Date "2020.06.23"]
[Round "7"]
[White "Artem_Koval"]
[Black "H3nriqueTV"]
[Result "0-1"]
[WhiteElo "2417"]
[BlackElo "2233"]
[TimeControl "180+1"]
[EndTime "11:18:37 PDT"]
[Termination "H3nriqueTV won by checkmate"]

1. e4 {[%clk 0:02:59.1]} 1... c5 {[%clk 0:02:57.8]} 2. Nf3 {[%clk 0:02:58.8]}
2... d6 {[%clk 0:02:56.6]} 3. d4 {[%clk 0:02:58.6]} 3... cxd4 {[%clk 0:02:57]}
4. Nxd4 {[%clk 0:02:59.5]} 4... Nf6 {[%clk 0:02:57.7]} 5. Nc3 {[%clk 0:02:58.2]}
5... Nc6 {[%clk 0:02:57.7]} 6. f4 {[%clk 0:02:52.6]} 6... e5 {[%clk 0:02:30.8]}
7. Nf3 {[%clk 0:02:51.4]} 7... Bg4 {[%clk 0:02:30]} 8. h3 {[%clk 0:02:49.3]}
8... Bxf3 {[%clk 0:02:29.9]} 9. Qxf3 {[%clk 0:02:50.2]} 9... Nd4 {[%clk
0:02:30.4]} 10. Qf2 {[%clk 0:02:49.9]} 10... Qa5 {[%clk 0:02:28]} 11. Bd3 {[%clk
0:02:49.1]} 11... Rc8 {[%clk 0:02:25.6]} 12. O-O {[%clk 0:02:48.2]} 12... Be7
{[%clk 0:02:25]} 13. Bd2 {[%clk 0:02:48.3]} 13... Qb6 {[%clk 0:02:24]} 14. fxe5
{[%clk 0:02:42.5]} 14... dxe5 {[%clk 0:02:24.1]} 15. Nd5 {[%clk 0:02:42.4]}
15... Qe6 {[%clk 0:02:08.2]} 16. Nxe7 {[%clk 0:02:29.8]} 16... Qxe7 {[%clk
0:01:51.6]} 17. Bg5 {[%clk 0:02:29]} 17... Qc5 {[%clk 0:01:36.4]} 18. Bxf6
{[%clk 0:02:25.2]} 18... gxf6 {[%clk 0:01:35.7]} 19. c3 {[%clk 0:02:21.7]} 19...
Ne6 {[%clk 0:01:36]} 20. Qxc5 {[%clk 0:02:18.9]} 20... Nxc5 {[%clk 0:01:35]} 21.
Bc2 {[%clk 0:02:02.2]} 21... Ke7 {[%clk 0:01:34]} 22. Rf2 {[%clk 0:02:02.2]}
22... Ne6 {[%clk 0:01:33]} 23. g3 {[%clk 0:01:51]} 23... Rhg8 {[%clk 0:01:31.2]}
24. Kh2 {[%clk 0:01:51]} 24... Rg6 {[%clk 0:01:30.8]} 25. Bb3 {[%clk 0:01:36.5]}
25... Ng5 {[%clk 0:01:23.6]} 26. Bd5 {[%clk 0:01:33.9]} 26... Rcg8 {[%clk
0:01:22.1]} 27. Bxb7 {[%clk 0:01:22]} 27... Ne6 {[%clk 0:01:03.2]} 28. Rg1
{[%clk 0:01:20.7]} 28... h5 {[%clk 0:00:51.5]} 29. Rgg2 {[%clk 0:01:17.2]} 29...
Nc5 {[%clk 0:00:31.4]} 30. Bd5 {[%clk 0:01:13.8]} 30... Nd3 {[%clk 0:00:31.6]}
31. Re2 {[%clk 0:00:59.7]} 31... Rg5 {[%clk 0:00:28.4]} 32. b4 {[%clk 0:00:58]}
32... Rc8 {[%clk 0:00:23.4]} 33. c4 {[%clk 0:00:51.3]} 33... Nxb4 {[%clk
0:00:22.8]} 34. Rb2 {[%clk 0:00:51.6]} 34... Nxd5 {[%clk 0:00:19.9]} 35. cxd5
{[%clk 0:00:51.5]} 35... Rc3 {[%clk 0:00:20.1]} 36. Rb7+ {[%clk 0:00:49.4]}
36... Kf8 {[%clk 0:00:20.1]} 37. Rxa7 {[%clk 0:00:49.1]} 37... Re3 {[%clk
0:00:20.1]} 38. Ra4 {[%clk 0:00:42.8]} 38... Rd3 {[%clk 0:00:20]} 39. Rc4 {[%clk
0:00:39.3]} 39... f5 {[%clk 0:00:20.1]} 40. exf5 {[%clk 0:00:33.6]} 40... Rxf5
{[%clk 0:00:20.3]} 41. Rc5 {[%clk 0:00:29.2]} 41... Rff3 {[%clk 0:00:20.1]} 42.
d6 {[%clk 0:00:25.5]} 42... e4 {[%clk 0:00:19.9]} 43. Re5 {[%clk 0:00:24.9]}
43... e3 {[%clk 0:00:19.4]} 44. Re2 {[%clk 0:00:21.8]} 44... Rxd6 {[%clk
0:00:15.2]} 45. Kg2 {[%clk 0:00:14.3]} 45... Rff6 {[%clk 0:00:12.2]} 46. R5xe3
{[%clk 0:00:13.9]} 46... Ra6 {[%clk 0:00:11.6]} 47. a3 {[%clk 0:00:13.9]} 47...
Rg6 {[%clk 0:00:11.1]} 48. Ra2 {[%clk 0:00:13.3]} 48... Ra4 {[%clk 0:00:10.8]}
49. Rb3 {[%clk 0:00:12.9]} 49... Kg7 {[%clk 0:00:11]} 50. Rb4 {[%clk 0:00:12.6]}
50... Ra5 {[%clk 0:00:11.5]} 51. a4 {[%clk 0:00:12.6]} 51... Rag5 {[%clk
0:00:12.1]} 52. Ra3 {[%clk 0:00:12.4]} 52... h4 {[%clk 0:00:12.8]} 53. g4 {[%clk
0:00:12.3]} 53... f5 {[%clk 0:00:12.6]} 54. Kf3 {[%clk 0:00:05.4]} 54... fxg4+
{[%clk 0:00:12.8]} 55. Rxg4 {[%clk 0:00:06.3]} 55... Rxg4 {[%clk 0:00:12.5]} 56.
hxg4 {[%clk 0:00:06.4]} 56... Rf6+ {[%clk 0:00:12.9]} 57. Kg2 {[%clk 0:00:04]}
57... Kh6 {[%clk 0:00:13.2]} 58. Kh3 {[%clk 0:00:04.1]} 58... Kg5 {[%clk
0:00:13.5]} 59. Rb3 {[%clk 0:00:03.7]} 59... Rf1 {[%clk 0:00:12.7]} 60. Rb5+
{[%clk 0:00:03.6]} 60... Kf4 {[%clk 0:00:13.2]} 61. Kxh4 {[%clk 0:00:04.5]}
61... Rh1# {[%clk 0:00:13.4]} 0-1